[Event "13th Chennai Open 2022"]
[Site "Chennai"]
[Date "2022.06.25"]
[Round "9.4"]
[White "Aronyak Ghosh"]
[Black "Baghdasaryan, Vahe"]
[Result "1-0"]
[ECO "A37"]
[WhiteElo "2494"]
[BlackElo "2267"]
[Annotator "TA"]
[PlyCount "65"]
[EventDate "2022.06.19"]
[EventType "swiss"]
[EventCountry "IND"]
[SourceTitle "playchess.com"]
[Source "ChessBase"]
[SourceQuality "1"]
[TimeControl "5400+30"]

{[%evp 12,65,14,-23,47,52,34,51,54,43,52,50,55,51,76,77,102,104,102,103,110,91,123,102,124,120,337,344,357,191,399,379,418,415,365,193,591,594,622,584,571,544,753,754,809,845,860,857,835,802,746,391,367,371,837,808]} 1. c4 {[%emt 0:05:39]} c5 {[%emt 0:01:59]} 2. Nf3 {[%emt 0:03:08]} Nc6 {[%emt 0:00:50]} 3. Nc3 {[%emt 0:01:40]} e5 {[%emt 0:01:38]} 4. g3 {[%emt 0:02:09]} g6 {[%emt 0:02:37]} 5. Bg2 {[%emt 0:00:37]} Bg7 {[%emt 0:00:42]} 6. a3 {[%emt 0:00:30]} Nge7 {[%emt 0:03:55] 6...Nge7 is better than 6...a5.} 7. b4 {[%emt 0:07:19]} cxb4 {[%emt 0:15:45] A37: Symmetrical English vs ...g6: 4 Bg2 Bg7 5 Nf3.} (7... d6 $11) 8. axb4 $14 {[%emt 0:00:20]} Nxb4 {[%emt 0:00:10]} 9. Ba3 {[%emt 0:00:42]} Nec6 {[%emt 0:00:23][%cal Oe5e4] White is slightly better.} 10. Nd5 {[%emt 0:04:46]} Nxd5 {[%emt 0:02:45]} 11. cxd5 {[%emt 0:00:06]} Ne7 {[%emt 0:00:43] [#]} 12. e4 $146 {[%emt 0:00:49][%mdl 1024] White has compensation.} ({Predecessor:} 12. Bd6 O-O 13. Nxe5 Re8 14. g4 Nf5 15. gxf5 Bxe5 16. Bxe5 Rxe5 17. fxg6 hxg6 18. d4 {1-0 (53) Tan,Z (2478)-Abrahamyan,T (2316) Ningbo 2013}) 12... f5 {[%emt 0:13:12]} 13. d3 {[%emt 0:01:46]} d6 {[%emt 0:02:27]} 14. Qa4+ {[%emt 0:04:42]} Bd7 {[%emt 0:01:10]} 15. Qb4 {[%emt 0:01:35] White is more active.} Nxd5 {[%emt 0:04:40]} 16. Qxd6 {[%emt 0:17:33]} (16. exd5 $6 e4 17. dxe4 (17. Nd4 a5 $11) 17... Bxa1 $11) (16. Qxb7 {looks sharper.} Qa5+ 17. Nd2 Nb6 18. Ke2) 16... fxe4 {[%emt 0:20:11]} 17. Qxd5 {[%emt 0:03:08]} exf3 {[%emt 0:00:25]} 18. Bxf3 {[%emt 0:00:04] Threatens to win with 0-0.} Bc8 $2 {[%emt 0:06:26]} (18... Qb6 $16) 19. Bd6 $18 {[%emt 0:03:18]} Rf8 {[%emt 0:11:41][%cal Of8f3] And now ...Rxf3! would win.} 20. Be4 {[%emt 0:06:11]} (20. Bd1 $142 {White threatens Ba4+ and mate.} Rf6 21. Ba4+ Bd7 22. Qg8+ (22. Bxe5 Bxa4 23. Qxd8+ Rxd8 $16) (22. Qxe5+ Kf7 $14) 22... Bf8 23. Bxf8 Rxf8 24. Qe6+ Qe7 25. Bxd7+ Kd8 26. Qxe7+ Kxe7 27. Bh3) 20... Rf6 $2 {[%emt 0:01:47] [#]} (20... a5) 21. Qg8+ $1 {[%emt 0:00:38]} Kd7 {[%emt 0:07:34]} 22. Qxg7+ {[%emt 0:00:48]} Kxd6 {[%emt 0:00:00]} 23. O-O {[%emt 0:00:37]} ({Weaker is} 23. Qxh7 Qc7 24. Qxc7+ Kxc7 $14) ({But not} 23. Bxb7 Bxb7 24. Qxb7 Rb8 25. Qxa7 (25. Ra6+ Kc5 $16) 25... Qc7 26. Ra6+ Kd7 27. Qxc7+ Kxc7 28. Rxf6 Rb1+ 29. Ke2 Rxh1 30. Rf7+ Kd6 $18) (23. d4 $142 exd4 24. O-O (24. Bxb7 Bxb7 25. Qxb7 Qe7+ 26. Qxe7+ Kxe7 $15)) 23... Qf8 $2 {[%emt 0:00:00]} (23... Qe7 {is more resistant.} 24. Qh6 (24. Qg8 Rf7 $16) 24... Bf5) 24. Qxh7 {[%emt 0:00:19]} Qf7 {[%emt 0:00:00]} 25. Qh8 {[%emt 0:00:58] Qd8+ is the strong threat.} Qf8 {[%emt 0:00:00] [#] Inhibits Qd8+.} 26. Qh4 {[%emt 0:00:18]} Kc7 {[%emt 0:00:00]} 27. Rfc1+ {[%emt 0:01:00]} Kb8 {[%emt 0:00:00]} 28. Rab1 {[%emt 0:00:13][%cal Oe4b7] White wants to mate with Bxb7!} Rb6 {[%emt 0:00:00]} 29. Qh7 {[%emt 0:00:45][%csl Gc1][%cal Rh7c7]} Qd8 {[%emt 0:00:16] Inhibits Qc7+.} 30. Qg7 {[%emt 0:00:46] Rxb6 would kill now.} a6 {[%emt 0:00:03]} 31. Qxe5+ {[%emt 0:03:11]} Ka7 {[%emt 0:01:43]} 32. Qc5 {[%emt 0:00:12] Black must now prevent Rc4.} Qd6 $2 {[%emt 0:00:05]} (32... Bd7 33. h4 Bb5 34. Bxg6 Qd6) 33. Qxd6 {[%emt 0:00:27] Black did not feel at home in the position after the opening.  Weighted Error Value: White=0.40/Black=0.61} 1-0

[Event "13th Chennai Open 2022"]
[Site "Chennai"]
[Date "2022.06.25"]
[Round "9.5"]
[White "Gusain, Himal"]
[Black "Daakshin Arun"]
[Result "1-0"]
[ECO "B23"]
[WhiteElo "2396"]
[BlackElo "2016"]
[Annotator "TA"]
[PlyCount "81"]
[EventDate "2022.06.19"]
[EventType "swiss"]
[EventCountry "IND"]
[SourceTitle "playchess.com"]
[Source "ChessBase"]
[SourceQuality "1"]
[TimeControl "5400+30"]

{[%evp 12,81,41,28,52,47,79,77,183,194,247,258,254,253,344,233,371,365,361,358,328,212,231,249,244,249,268,48,36,46,39,35,31,22,23,28,37,0,14,4,8,6,45,32,103,74,186,187,284,285,277,277,387,371,406,404,404,418,399,409,409,390,414,417,423,408,1131,1025,1134,1112,1364,388]} 1. e4 {[%emt 0:04:49]} c5 {[%emt 0:00:08]} 2. Nc3 {[%emt 0:00:05]} d6 {[%emt 0:00:12]} 3. f4 {[%emt 0:00:06]} g6 {[%emt 0:00:14]} 4. Nf3 {[%emt 0:00:20]} Bg7 {[%emt 0:00:05]} 5. Bc4 {[%emt 0:01:13]} e6 {[%emt 0:00:18]} 6. d4 {[%emt 0:00:21]} cxd4 {[%emt 0:00:53]} 7. Nxd4 {[%emt 0:00:32] Hoping for Ndb5.} a6 {[%emt 0:04:59] Inhibits Ndb5. B23: Closed Sicilian: Lines without g3.} 8. O-O {[%emt 0:03:44] Black must now prevent f5.} Qc7 {[%emt 0:12:22]} 9. Bb3 {[%emt 0:02:34] Strongly threatening f5. 0x0.00166dfeb0b1dp-1022s more active pieces.} Nf6 {[%emt 0:08:20]} (9... Nc6 $16 10. Be3 Nf6) 10. f5 $18 {[%emt 0:07:29][%cal Rf5e6] [#]} e5 $146 {[%emt 0:06:46]} (10... O-O $142 11. fxe6 fxe6 12. Bxe6+ (12. Nxe6 Bxe6 13. Bxe6+ Kh8 $16) 12... Kh8) ({Predecessor:} 10... exf5 11. exf5 O-O 12. fxg6 hxg6 13. Qd3 Nc6 14. Nxc6 Bf5 15. Rxf5 gxf5 16. Nd4 Ne4 17. Nxf5 Nxc3 18. Nxg7 Kxg7 {1-0 (29) Frank,S (1385)-Bieszk,S (985) LSS email 2016}) 11. Nf3 {[%emt 0:12:02][%cal Bd4f3,Bf3g5,Bg5e4,Be4d6][%mdl 32]} gxf5 {[%emt 0:06:05] [#]} 12. Ng5 $1 {[%emt 0:01:44][%csl LRf5,LRf7]} O-O {[%emt 0:05:59]} 13. exf5 {[%emt 0:01:01] And now Nce4 would win.} Qb6+ {[%emt 0:07:57]} (13... Nbd7 {keeps fighting.} 14. Nge4 Qc6) 14. Kh1 {[%emt 0:01:08]} Nbd7 {[%emt 0:02:38]} 15. Nge4 {[%emt 0:03:37]} Qd4 {[%emt 0:05:03]} 16. Nxd6 {[%emt 0:20:26]} Nc5 {[%emt 0:03:09]} 17. Bg5 {[%emt 0:00:07] aiming for Nd5.} Nxb3 {[%emt 0:02:18]} 18. axb3 {[%emt 0:01:18]} Rd8 {[%emt 0:01:15][%cal Bf8d8,Bd8d5,Bd5c5][%mdl 32]} 19. Qxd4 {[%emt 0:02:19]} ({Better is} 19. Nc4 $18 Qxd1 20. Raxd1 (20. Nxd1 h6 $16)) 19... exd4 $14 {[%emt 0:00:06]} 20. Nce4 {[%emt 0:00:05]} Nxe4 {[%emt 0:01:42]} 21. Nxe4 {[%emt 0:00:05]} Rd5 {[%emt 0:01:14]} 22. Ng3 {[%emt 0:09:32]} Bd7 {[%emt 0:01:10]} 23. Rad1 {[%emt 0:00:05]} Bc6 {[%emt 0:02:30]} 24. h4 {[%emt 0:00:50]} h6 {[%emt 0:01:30]} 25. Bf4 {[%emt 0:00:08]} Re8 {[%emt 0:02:54]} 26. Kh2 {[%emt 0:00:06]} Rc5 {[%emt 0:01:53]} 27. Rd2 {[%emt 0:01:55]} a5 {[%emt 0:01:26]} ({Black should play} 27... Bf6 $14) 28. Rff2 {[%emt 0:00:43][%cal Of5f6]} b5 {[%emt 0:01:21] [#]} (28... Rd5 $16) 29. f6 $1 $18 {[%emt 0:00:43]} Bh8 {[%emt 0:03:19]} (29... Bxf6 $2 30. Bd6 (30. Bxh6 Re6 $14) 30... Be7 31. Bxc5 (31. Rxd4 Bxd6 32. Rxd6 Re6 $16) 31... Bxc5 32. Nf5 $18) (29... Bf8 $142 30. Rxd4 Re6) 30. Bxh6 {[%emt 0:00:31]} Rd5 {[%emt 0:00:56]} 31. Bg5 {[%emt 0:00:51]} Bd7 {[%emt 0:01:02]} 32. c4 {[%emt 0:05:23]} bxc4 {[%emt 0:00:25]} 33. bxc4 {[%emt 0:00:05]} Rd6 {[%emt 0:00:21]} 34. Nf5 {[%emt 0:00:42]} Bxf5 {[%emt 0:00:32]} 35. Rxf5 {[%emt 0:00:04]} Ree6 {[%emt 0:01:14]} 36. Rxa5 {[%emt 0:02:17]} Bxf6 {[%emt 0:00:09]} 37. Bxf6 {[%emt 0:00:11]} Rxf6 {[%emt 0:00:03]} 38. Rd5 {[%emt 0:03:03]} Rxd5 {[%emt 0:00:21]} (38... Rb6 $142 39. R5xd4 Rfc6) 39. cxd5 {[%emt 0:00:06] White is clearly winning.} Rb6 {[%emt 0:00:36]} 40. Kg3 {[%emt 0:00:34]} Rb4 {[%emt 0:00:41]} 41. Kf4 $2 {[%emt 0:00:16] Weighted Error Value: White=0.27 (precise) /Black=0.36} (41. d6) 1-0

[Event "13th Chennai Open 2022"]
[Site "Chennai"]
[Date "2022.06.25"]
[Round "9.6"]
[White "Kunal, M.."]
[Black "Deepan Chakkravarthy J."]
[Result "1/2-1/2"]
[ECO "B30"]
[WhiteElo "2277"]
[BlackElo "2478"]
[Annotator "RC"]
[PlyCount "153"]
[EventDate "2022.06.19"]
[EventType "swiss"]
[EventCountry "IND"]
[SourceTitle "playchess.com"]
[Source "ChessBase"]
[SourceQuality "1"]
[TimeControl "5400+30"]

1. e4 {[%emt 0:00:30]} c5 {[%emt 0:07:26]} 2. Nf3 {[%emt 0:00:00]} Nc6 {[%emt 0:00:03]} 3. Bb5 {[%emt 0:00:33]} e6 {[%emt 0:00:07]} 4. O-O {[%emt 0:03:11]} Nge7 {[%emt 0:00:27]} 5. d4 {[%emt 0:02:58]} cxd4 {[%emt 0:00:16]} 6. Nxd4 {[%emt 0:00:06]} Nxd4 {[%emt 0:00:49]} 7. Qxd4 {[%emt 0:00:07]} a6 {[%emt 0:00:03]} 8. Be2 {[%emt 0:06:43]} Nc6 {[%emt 0:00:20]} 9. Qe3 {[%emt 0:03:17]} Qc7 {[%emt 0:02:21]} 10. c3 {[%emt 0:02:38]} Be7 {[%emt 0:05:10]} 11. Nd2 {[%emt 0:02:22]} Rb8 {[%emt 0:04:39]} 12. Kh1 {[%emt 0:01:27]} O-O {[%emt 0:01:32]} 13. f4 {[%emt 0:00:59]} b5 {[%emt 0:02:11]} 14. e5 {[%emt 0:02:00]} Bb7 {[%emt 0:15:30]} 15. Ne4 {[%emt 0:00:51]} Na5 {[%emt 0:00:44]} 16. Bd3 {[%emt 0:02:01]} f5 {[%emt 0:03:02]} 17. exf6 {[%emt 0:02:09]} gxf6 {[%emt 0:00:59]} 18. Qh3 {[%emt 0:06:00]} Rf7 {[%emt 0:01:28]} 19. Be3 {[%emt 0:00:45]} Nc4 {[%emt 0:14:14]} 20. Bd4 {[%emt 0:00:40]} Bxe4 {[%emt 0:14:40]} 21. Bxe4 {[%emt 0:00:28]} f5 {[%emt 0:00:11]} 22. Bf3 {[%emt 0:06:40]} Bf6 {[%emt 0:00:32]} 23. Bh5 {[%emt 0:01:47]} Rff8 {[%emt 0:00:01]} 24. Bxf6 {[%emt 0:13:37]} Rxf6 {[%emt 0:00:04]} 25. Qh4 {[%emt 0:00:09]} Rbf8 {[%emt 0:00:31]} 26. Rf2 {[%emt 0:00:05]} Nd6 {[%emt 0:00:57]} 27. Bf3 {[%emt 0:01:54]} Ne4 {[%emt 0:00:17]} 28. Bxe4 {[%emt 0:01:29]} fxe4 {[%emt 0:00:04]} 29. Qg3+ {[%emt 0:01:18]} Kh8 {[%emt 0:00:58]} 30. Raf1 {[%emt 0:01:41]} Qc5 {[%emt 0:00:13]} 31. Re2 {[%emt 0:00:49]} d5 {[%emt 0:00:08]} 32. b4 {[%emt 0:08:13]} Qc4 {[%emt 0:08:02]} 33. Ref2 {[%emt 0:00:03]} Rc8 {[%emt 0:01:39]} 34. Qh4 {[%emt 0:02:50]} Rff8 {[%emt 0:05:42]} 35. Qh3 {[%emt 0:01:56]} Qxc3 {[%emt 0:02:45]} 36. Qxe6 {[%emt 0:00:07]} e3 {[%emt 0:06:08]} 37. Re2 {[%emt 0:02:25]} Rxf4 {[%emt 0:02:35]} 38. Rd1 {[%emt 0:00:03]} Re4 {[%emt 0:02:08]} 39. Qxd5 {[%emt 0:00:58]} Rce8 {[%emt 0:00:29]} 40. h3 {[%emt 0:02:51]} Qxb4 {[%emt 0:00:27]} 41. Qh5 {[%emt 0:00:03]} Qe7 {[%emt 0:00:26]} 42. Rf1 {[%emt 0:00:14]} Re5 {[%emt 0:00:38]} 43. Qh6 {[%emt 0:00:13]} Re6 {[%emt 0:00:20]} 44. Qh5 {[%emt 0:00:05]} Qg7 {[%emt 0:00:40]} 45. Rf7 {[%emt 0:01:05]} Qg6 {[%emt 0:00:31]} 46. Qf3 {[%emt 0:00:06]} Kg8 {[%emt 0:00:23]} 47. Rf4 {[%emt 0:00:02]} Kh8 {[%emt 0:00:38]} 48. Rg4 {[%emt 0:02:39]} Qb1+ {[%emt 0:00:30]} 49. Kh2 {[%emt 0:00:03]} Qa1 {[%emt 0:00:06]} 50. Rg5 {[%emt 0:00:18]} Qd4 {[%emt 0:00:17]} 51. Rf5 {[%emt 0:01:44]} Qd6+ {[%emt 0:00:38]} 52. g3 {[%emt 0:00:07]} b4 {[%emt 0:00:58]} 53. Rf7 {[%emt 0:00:48]} Rg6 {[%emt 0:00:27]} 54. Rf4 {[%emt 0:01:37]} a5 {[%emt 0:00:17]} 55. h4 {[%emt 0:00:03]} Rge6 {[%emt 0:00:47]} 56. Rf7 {[%emt 0:00:45]} Rg6 {[%emt 0:00:24]} 57. Rf4 {[%emt 0:01:00]} Rge6 {[%emt 0:00:37]} 58. Rf7 {[%emt 0:01:36]} Rg8 {[%emt 0:00:25]} 59. Rf4 {[%emt 0:00:47]} a4 {[%emt 0:00:20]} 60. Kh3 {[%emt 0:00:24]} Qd7 {[%emt 0:00:44]} 61. g4 {[%emt 0:00:04]} Qe7 {[%emt 0:00:29]} 62. Rf7 {[%emt 0:00:09]} Qe8 {[%emt 0:00:31]} 63. Qf5 {[%emt 0:00:26]} Reg6 {[%emt 0:00:17]} 64. h5 {[%emt 0:01:01]} R6g7 {[%emt 0:00:21]} 65. Rxg7 {[%emt 0:00:09]} Rxg7 {[%emt 0:00:02]} 66. Qf4 {[%emt 0:00:38]} Re7 {[%emt 0:00:29]} 67. Qxb4 {[%emt 0:00:06]} Re4 {[%emt 0:00:28]} 68. Qc3+ {[%emt 0:02:18]} Kg8 {[%emt 0:00:04]} 69. Qf6 {[%emt 0:00:38]} Re6 {[%emt 0:01:34]} 70. Qg5+ {[%emt 0:00:15]} Kh8 {[%emt 0:00:23]} 71. Qf4 {[%emt 0:00:17]} h6 {[%emt 0:00:40]} 72. a3 {[%emt 0:01:37]} Kg8 {[%emt 0:00:21]} 73. Kg3 {[%emt 0:00:30]} Kg7 {[%emt 0:00:24]} 74. Qd4+ {[%emt 0:00:38]} Kg8 {[%emt 0:00:09]} 75. Qf4 {[%emt 0:01:25]} Kg7 {[%emt 0:00:07]} 76. Qc7+ {[%emt 0:01:28]} Kg8 {[%emt 0:00:17]} 77. Qf4 {[%emt 0:01:02]} 1/2-1/2

[Event "13th Chennai Open 2022"]
[Site "Chennai"]
[Date "2022.06.25"]
[Round "9.7"]
[White "Aaryan Varshney"]
[Black "Stupak, Kirill"]
[Result "1/2-1/2"]
[ECO "D51"]
[WhiteElo "2308"]
[BlackElo "2440"]
[Annotator "TA"]
[PlyCount "60"]
[EventDate "2022.06.19"]
[EventType "swiss"]
[EventCountry "IND"]
[SourceTitle "playchess.com"]
[Source "ChessBase"]
[SourceQuality "1"]
[TimeControl "5400+30"]

{[%evp 12,60,38,21,39,44,40,19,52,0,44,23,36,25,23,22,45,37,53,0,0,0,-9,-21,0,15,25,0,0,0,55,-29,11,0,0,0,55,0,0,0,41,0,0,0,58,0,2,0,24,0,31]} 1. d4 Nf6 {[%emt 0:02:04]} 2. c4 {[%emt 0:00:35]} e6 {[%emt 0:00:11]} 3. Nf3 {[%emt 0:00:06]} d5 {[%emt 0:00:22]} 4. Nc3 {[%emt 0:00:07]} Nbd7 {[%emt 0:00:22]} 5. Bg5 {[%emt 0:00:19]} c6 {[%emt 0:03:36]} 6. e3 {[%emt 0:00:50]} h6 {[%emt 0:00:04]} 7. Bh4 {[%emt 0:00:13]} g5 {[%emt 0:00:05] D51: Queen's Gambit Declined: 4 Bg5 Nbd7 sidelines.} 8. Bg3 {[%emt 0:00:21]} Nh5 {[%emt 0:00:02]} 9. Be5 {[%emt 0:00:26]} Ng7 {[%emt 0:00:04]} 10. Bg3 {[%emt 0:00:11]} (10. h3 $14) 10... Nf5 {[%emt 0:00:28]} 11. Bd3 {[%emt 0:03:57] White wants to play Bxf5.} Nxg3 {[%emt 0:02:01]} 12. hxg3 {[%emt 0:00:14]} Bg7 {[%emt 0:02:15]} 13. Qc2 {[%emt 0:00:43]} dxc4 {[%emt 0:06:33]} 14. Bxc4 {[%emt 0:00:24] [#]} Qe7 $146 {[%emt 0:09:13]} ({Predecessor:} 14... b5 15. Bd3 Bb7 16. O-O Qe7 17. Rac1 a6 18. Ne4 Rc8 19. Nfd2 f5 20. Nc5 Nxc5 21. dxc5 O-O 22. g4 Rcd8 {1-0 (69) Jubin,J (2267)-Arjun,K (2390) Abu Dhabi 2018}) 15. a3 {[%emt 0:11:25]} (15. O-O-O $14) 15... b6 $11 {[%emt 0:10:05]} 16. Rd1 {[%emt 0:06:27][%cal Of3e5]} Bb7 {[%emt 0:03:41]} 17. O-O {[%emt 0:03:36]} g4 {[%emt 0:17:15]} 18. Nh4 {[%emt 0:02:47]} Bf6 {[%emt 0:02:03]} 19. Ne4 {[%emt 0:17:12]} Bg5 {[%emt 0:04:31]} 20. b4 {[%emt 0:09:23]} Nf6 {[%emt 0:03:44]} (20... Rg8 $1 $11) 21. Nc3 {[%emt 0:06:47]} (21. Nxf6+ $14 Qxf6 22. Qe4) 21... Nd5 {[%emt 0:05:50]} 22. e4 $36 {[%emt 0:03:44][%mdl 2048] Black is under pressure.} Nxc3 {[%emt 0:02:26]} 23. Qxc3 {[%emt 0:00:15]} Bf6 {[%emt 0:03:04]} ({Black should play} 23... O-O-O $11) 24. Qc1 {[%emt 0:13:46]} (24. f4 $14) 24... Bg5 {[%emt 0:06:54]} (24... Bxh4 25. gxh4 O-O-O 26. d5 cxd5 27. Bxd5+ Qc7 28. Qb2 $1 $14) 25. Qc3 {[%emt 0:00:18] aiming for d5.} Bf6 {[%emt 0:10:06]} 26. Qc1 {[%emt 0:00:13]} Bg5 $1 {[%emt 0:02:54]} (26... Bxh4 27. gxh4 O-O-O 28. d5 cxd5 29. Bxd5+ Qc7 30. Qa1 $1 $16) 27. Qc3 {[%emt 0:00:10]} ({Better is} 27. Qc2 $11) 27... Bf6 $14 {[%emt 0:00:36]} 28. Qc1 {[%emt 0:00:14]} ({White should try} 28. Qc2 $1 $14) 28... Bg5 $11 {[%emt 0:00:02]} ({Don't do} 28... Bxh4 29. gxh4 O-O-O 30. d5 cxd5 31. Bxd5+ Qc7 32. Qb2 $1 $14) 29. Qc3 {[%emt 0:00:05] Threatens to win with d5.} Bf6 {[%emt 0:00:03]} 30. Qc1 {[%emt 0:00:04] d5 is the strong threat.} (30. Qc2 $5 {[%cal Rd4d5]}) 30... Bg5 {[%emt 0:00:02] Weighted Error Value: White=0.26 (precise) /Black=0.15 (very precise)} ({Much less strong is} 30... Bxh4 31. gxh4 O-O-O 32. d5 cxd5 33. Bxd5+ Qc7 {[#]} 34. Qa1 $1 $16) 1/2-1/2

[Event "13th Chennai Open 2022"]
[Site "Chennai"]
[Date "2022.06.25"]
[Round "9.8"]
[White "Ajay Karthikeyan"]
[Black "Saravana, Krishnan P."]
[Result "1/2-1/2"]
[ECO "B11"]
[WhiteElo "2436"]
[BlackElo "2269"]
[Annotator "TA"]
[PlyCount "101"]
[EventDate "2022.06.19"]
[EventType "swiss"]
[EventCountry "IND"]
[SourceTitle "playchess.com"]
[Source "ChessBase"]
[SourceQuality "1"]
[TimeControl "5400+30"]

{[%evp 10,101,16,10,16,15,31,17,29,25,22,20,29,29,22,25,20,11,24,0,0,0,0,0,0,-25,0,0,0,0,0,0,0,0,0,0,64,58,106,98,105,110,121,99,112,119,131,120,220,52,39,23,18,0,0,0,0,0,0,-92,-100,-94,-32,-62,-81,-72,-8,-381,-381,-270,-270,-452,-419,-712,-656,-646,-798,-750,-617,-859,-507,-1639,-1431,-5240,-5240,-5240,-5233,-5218,-5211,-5211,-4404,-1274,-1170,-750]} 1. e4 {[%emt 0:00:30]} c6 {[%emt 0:00:30]} 2. Nc3 {[%emt 0:00:30]} d5 {[%emt 0:00:30]} 3. Nf3 {[%emt 0:00:30]} Bg4 {[%emt 0:00:30]} 4. h3 {[%emt 0:00:30]} Bxf3 {[%emt 0:00:30]} 5. Qxf3 {[%emt 0:00:30]} e6 {[%emt 0:00:30]} 6. Be2 {[%emt 0:00:30]} d4 {[%emt 0:00:30] B11: Caro-Kann: Two Knights Variation.} 7. Nb1 {[%emt 0:00:30]} Ne7 $1 {[%emt 0:00:30][%mdl 4] outshines the older 7...Nd7.} 8. h4 {[%emt 0:00:30]} h5 {[%emt 0:00:30] The position is equal.} 9. d3 {[%emt 0:00:30]} Ng6 {[%emt 0:00:30]} 10. g3 {[%emt 0:00:30]} Nd7 {[%emt 0:00:30]} 11. Nd2 {[%emt 0:00:30] [#]} a5 $146 {[%emt 0:00:30]} ({Predecessor:} 11... Be7 12. Qg2 Qc7 13. f4 e5 14. f5 Ngf8 15. c3 dxc3 16. bxc3 O-O-O 17. Nb3 Nc5 {½-½ (41) Praggnanandhaa,R (2624)-Gukesh,D (2637) La Roda 2022}) 12. Qg2 {[%emt 0:00:30]} a4 {[%emt 0:00:30]} 13. a3 {[%emt 0:00:30]} Qa5 {[%emt 0:00:30]} 14. f4 {[%emt 0:00:30]} e5 {[%emt 0:00:30]} 15. f5 {[%emt 0:00:30]} Ne7 {[%emt 0:00:30][%cal Bg6e7,Be7g8,Bg8h6,Bh6g4][%mdl 32]} 16. O-O {[%emt 0:00:30]} Ng8 {[%emt 0:00:30]} 17. Nf3 {[%emt 0:00:30]} Qc5 {[%emt 0:00:30]} 18. Ng5 {[%emt 0:00:30]} Ndf6 {[%emt 0:00:30]} 19. Bf3 {[%emt 0:00:30]} Nh6 {[%emt 0:00:30]} 20. Qe2 {[%emt 0:00:30]} Nhg4 {[%emt 0:00:30]} 21. Rb1 {[%emt 0:00:30]} Be7 {[%emt 0:00:30]} 22. Kg2 {[%emt 0:00:30]} O-O {[%emt 0:00:30]} (22... Ra5 $11) 23. Nh3 $1 $14 {[%emt 0:00:30]} Rfb8 {[%emt 0:00:30]} (23... Ne3+ $14 24. Bxe3 dxe3) 24. Nf2 {[%emt 0:00:30]} Nxf2 {[%emt 0:00:30]} 25. Rxf2 {[%emt 0:00:30]} b5 {[%emt 0:00:30]} 26. Bxh5 {[%emt 0:00:30]} b4 {[%emt 0:00:30]} 27. axb4 {[%emt 0:00:30]} Rxb4 {[%emt 0:00:30]} 28. Ra1 {[%emt 0:00:30]} Qb5 {[%emt 0:00:30]} (28... Qd6 $16 {was worth a try.}) 29. Ra2 $2 {[%emt 0:00:30]} (29. g4 $1 $18 {[%cal Rg4g5]}) 29... c5 $1 {[%emt 0:00:30][%cal Bc6c5,Bc5c4,Bc4d3][%mdl 32]} 30. g4 {[%emt 0:00:30]} (30. b3 $5 {[%cal Rc1d2]}) 30... c4 $1 {[%emt 0:00:30]} (30... Nxh5 31. gxh5 Qc6 32. Qg4 $16) 31. g5 {[%emt 0:00:30]} cxd3 {[%emt 0:00:30]} 32. Qf3 {[%emt 0:00:30]} Nxh5 {[%emt 0:00:30]} 33. Qxh5 {[%emt 0:00:30] And now g6 would win.} Qc6 $36 {[%emt 0:00:30][%csl LRc2,LRe4][%mdl 2048] Black has the initiative.} 34. g6 {[%emt 0:00:30]} (34. f6 $1 $11 {was the only way to keep the balance.} Qxe4+ 35. Kg3) 34... Qxe4+ $17 {[%emt 0:00:30]} 35. Kg3 {[%emt 0:00:30] [#] Threatening mate with Qh7+.} fxg6 {[%emt 0:00:30]} (35... Qxh4+ $1 $17 36. Qxh4 Bxh4+ 37. Kxh4 dxc2) 36. fxg6 $15 {[%emt 0:00:30][%csl Gg6][%cal Rh5h7] [#]} Bxh4+ $1 {[%emt 0:00:30]} 37. Qxh4 {[%emt 0:00:30][%csl Gg6][%cal Rh4h7]} Qxg6+ {[%emt 0:00:30]} (37... Qxh4+ $17 38. Kxh4 dxc2) 38. Qg4 $2 {[%emt 0:00:30][%mdl 8192]} (38. Kh2 $1 $11 {and White has nothing to worry.}) 38... Qxg4+ $19 {[%emt 0:00:30]} 39. Kxg4 {[%emt 0:00:30]} dxc2 {[%emt 0:00:30] aiming for ...d3+.} 40. Ra3 {[%emt 0:00:30]} (40. Kf3 Rf8+ 41. Kg2) 40... d3+ {[%emt 0:00:30]} 41. Kf3 {[%emt 0:00:30]} (41. Kg3 $142 Rb3 42. Rd2) 41... Rf8+ {[%emt 0:00:30] Black is clearly winning.} 42. Ke3 {[%emt 0:00:30]} Rxf2 {[%emt 0:00:30]} 43. Kxf2 {[%emt 0:00:30] [#]} Rxb2 $3 {[%emt 0:00:30][%cal Od3d2][%mdl 4608] Endgame ( -> ...d2!). KRB-KR} 44. Ke3 {[%emt 0:00:30]} (44. Rxd3 Rb1) 44... Rb1 {[%emt 0:00:30]} 45. Kd2 {[%emt 0:00:30]} (45. Bd2 $142 c1=R 46. Bxc1 Rxc1 47. Kxd3) 45... e4 {[%emt 0:00:30] ...Kf7 is the strong threat.} 46. Rxa4 {[%emt 0:00:30]} e3+ $1 {[%emt 0:00:30]} 47. Kxe3 {[%emt 0:00:30]} Rxc1 {[%emt 0:00:30]} 48. Kxd3 {[%emt 0:00:30]} Kh7 {[%emt 0:00:30]} ({Worse is} 48... g5 49. Ra5 $11 (49. Kd2 Rf1 $17)) 49. Ra5 {[%emt 0:00:30]} g6 {[%emt 0:00:30]} 50. Kd2 {[%emt 0:00:30]} Rd1+ {[%emt 0:00:30]} 51. Kxc2 {[%emt 0:00:30][%mdl 32768] Black used his chance.  Weighted Error Value: White=0.58/Black=0.20 (precise) . An unexpected result.} 1/2-1/2